fUSD/lending_fUSD_20251105
["ID","MTS","AMOUNT","RATE_DAILY","PERIOD"]
[393208581,1762320642624,-150.4,0.00037285,2]
[393208582,1762320642634,-500.0,0.00037288,7]
[393208583,1762320642647,-500.0,0.00037288,7]
[393208584,1762320642656,-500.0,0.00037288,7]
[393208585,1762320642666,-500.0,0.00037288,7]
[393208586,1762320642675,-500.0,0.00037288,7]
[393208587,1762320642685,-500.0,0.00037288,7]
[393208588,1762320642695,-500.0,0.00037288,7]
[393208589,1762320642705,-500.0,0.00037288,7]
[393208591,1762320642716,-500.0,0.00037288,7]
[393208593,1762320642725,-500.0,0.00037288,7]
[393208594,1762320642735,-500.0,0.00037288,7]
[393208595,1762320642744,-500.0,0.00037288,7]
[393208596,1762320642754,-414.31,0.00037288,7]
[393208597,1762320642763,-500.0,0.00037288,7]
[393208598,1762320642772,-500.0,0.00037288,7]
[393208599,1762320642781,-500.0,0.00037288,7]
[393208600,1762320642791,-500.0,0.00037288,7]
[393208601,1762320642800,-500.0,0.00037288,7]
[393208602,1762320642809,-500.0,0.00037288,7]
[393208603,1762320642818,-500.0,0.00037288,7]
[393208604,1762320642828,-500.0,0.00037288,7]
[393208605,1762320642837,-215.02,0.00037288,7]
[393208606,1762320642847,-151.0,0.00037292,14]
[393208607,1762320642856,-60939.4086114,0.00037294,4]
[393208608,1762320642866,-150.4,0.00037294,2]
[393208609,1762320642875,-150.4,0.00037294,2]
[393208610,1762320642885,-150.4,0.00037294,2]
[393208611,1762320642894,-954.06,0.00037298,2]
[393208612,1762320642904,-477.03,0.00037298,2]
[393208613,1762320642913,-477.03,0.00037298,2]
[393208614,1762320642922,-954.06,0.00037298,2]
[393208615,1762320642932,-477.03,0.00037298,2]
[393208616,1762320642941,-1300.0,0.000373,13]
[393208617,1762320642950,-212.48,0.00037303,14]
[393208618,1762320642959,-500.0,0.00037304,120]
[393208619,1762320642968,-500.0,0.00037304,2]
[393208620,1762320642978,-500.0,0.00037304,120]
[393208621,1762320642987,-500.0,0.00037304,120]
[393208622,1762320642996,-116516.05,0.00037304,2]
[393208623,1762320643005,-500.0,0.0003731,30]
[393208624,1762320643015,-189.0,0.00037323,7]
[393208625,1762320643025,-200.0,0.00037337,10]
[393208626,1762320643034,-183.11092323,0.00037348,2]
[393208627,1762320643043,-329.59966182,0.00037348,2]
[393208628,1762320643053,-503.15659393,0.00037373,5]
[393208629,1762320643062,-300.0,0.00037373,5]
[393208630,1762320643071,-500.0,0.00037373,5]
[393208631,1762320643080,-161.1320248,0.00037397,30]
[393208632,1762320643089,-161.1320248,0.00037397,30]
[393208633,1762320643099,-1800.0,0.000374,13]
[393208634,1762320643108,-1200.0,0.000374,13]
[393208635,1762320643118,-198.97295092,0.00037479,7]
[393208636,1762320643128,-877.98560828,0.00037485,2]
[393208637,1762320643138,-2300.0,0.000375,13]
[393208638,1762320643147,-1500.0,0.000375,13]
[393208639,1762320643158,-15234.8521528,0.00037511,4]
[393208640,1762320643168,-221.11103969,0.00037511,2]
[393208641,1762320643177,-1000.0,0.00037521,5]
[393208642,1762320643187,-1000.0,0.00037548,5]
[393208643,1762320643196,-502.7350988,0.00037548,5]
[393208644,1762320643205,-1000.0,0.00037548,5]
[393208645,1762320643215,-1000.0,0.00037548,5]
[393208646,1762320643224,-1000.0,0.00037548,5]
[393208647,1762320643234,-1000.0,0.00037548,5]
[393208648,1762320643244,-239.56426196,0.00037548,3]
[393208649,1762320643253,-161.1320248,0.00037562,30]
[393208650,1762320643262,-161.1320248,0.00037562,30]
[393208651,1762320643271,-212.48,0.00037577,14]
[393208652,1762320643280,-161.13202482,0.00037589,30]
[393208653,1762320643290,-4268.45482343,0.0003759,2]
[393208654,1762320643300,-400.0,0.000376,13]
[393208655,1762320643309,-300.0,0.000376,13]
[393208656,1762320643319,-152.39,0.000376,14]
[393208657,1762320643328,-161.1320248,0.00037699,30]
[393208658,1762320643337,-161.1320248,0.00037699,30]
[393208659,1762320643347,-151.65,0.000377,2]
[393208660,1762320643356,-318.72,0.000377,2]
[393208661,1762320643365,-150.0,0.000377,2]
[393208662,1762320643375,-400.0,0.000377,13]
[393208663,1762320643384,-300.0,0.000377,13]
[393208664,1762320643394,-300.0,0.00037701,2]
[393208665,1762320643403,-415.63,0.00037701,2]
[393208666,1762320643412,-415.63,0.00037701,2]
[393208667,1762320643423,-300.0,0.00037709,2]
[393208668,1762320643432,-150.0,0.00037709,2]
[393208669,1762320643442,-310.37,0.00037709,2]
[393208670,1762320643451,-500.0,0.0003771,30]
[393208671,1762320643460,-877.98560828,0.00037724,2]
[393208672,1762320643469,-1500.0,0.0003774,7]
[393208673,1762320643478,-221.11103969,0.00037796,2]
[393208674,1762320643488,-400.0,0.000378,13]
[393208675,1762320643497,-300.0,0.000378,13]
[393208676,1762320643506,-2500.0,0.00037815,7]
[393208677,1762320643515,-2500.0,0.00037824,7]
[393208678,1762320643524,-189.0,0.00037828,7]
[393208679,1762320643533,-15234.8521528,0.00037832,4]
[393208680,1762320643542,-2500.0,0.00037833,7]
[393208681,1762320643551,-161.1320248,0.00037836,30]
[393208682,1762320643560,-161.1320248,0.00037836,30]
[393208683,1762320643569,-2500.0,0.00037842,7]
[393208684,1762320643578,-2500.0,0.0003785,7]
[393208685,1762320643587,-212.48,0.00037851,14]
[393208686,1762320643596,-1425.0,0.00037858,2]
[393208687,1762320643605,-2500.0,0.00037859,7]
[393208688,1762320643614,-2500.0,0.00037868,7]
[393208689,1762320643623,-2500.0,0.00037877,7]
[393208690,1762320643633,-199.10876962,0.0003788,2]
[393208691,1762320643645,-2500.0,0.00037886,7]
[393208692,1762320643654,-15234.8521528,0.00037891,4]
[393208693,1762320643663,-5800.0,0.00037893,2]
[393208694,1762320643672,-2500.0,0.00037894,7]
[393208695,1762320643683,-400.0,0.000379,13]
[393208696,1762320643692,-300.0,0.000379,13]
[393208697,1762320643701,-5800.0,0.00037901,2]
[393208698,1762320643711,-2500.0,0.00037903,7]
[393208699,1762320643720,-16352.38191397,0.0003791,2]
[393208700,1762320643730,-500.0,0.0003791,30]
[393208701,1762320643747,-2500.0,0.00037912,7]
[393208702,1762320643756,-1000.0,0.00037921,5]
[393208703,1762320643766,-2500.0,0.00037921,7]
[393208704,1762320643775,-2500.0,0.0003793,7]
[393208705,1762320643784,-2500.0,0.00037938,7]
[393208706,1762320643794,-1425.0,0.00037942,2]
[393208707,1762320643803,-162.12037659,0.00037942,7]
[393208708,1762320643812,-2500.0,0.00037947,7]
[393208709,1762320643822,-221.11103974,0.00037956,2]
[393208710,1762320643831,-2500.0,0.00037956,7]
[393208711,1762320643840,-1572.7290839,0.0003796,2]
[393208712,1762320643849,-2500.0,0.00037965,7]
[393208713,1762320643858,-629.58,0.00037969,120]
[393208714,1762320643867,-72188.66705182,0.0003797,2]
[393208715,1762320644152,-574.0,0.00033972,2]
[393208716,1762320644162,-574.0,0.00036972,2]
[393208717,1762320644171,-1247.05310953,0.0003797,2]
[393208718,1762320644189,-151.0,0.0003699,31]
[393208719,1762320644200,-4200.2271986,0.0003797,2]
[393208720,1762320644212,-10481.79016393,0.0003797,2]
[393208721,1762320644221,-151.0,0.0003797,31]
[393208722,1762320644230,-166.201088,0.0003797,31]
[393208723,1762320644239,-151.0,0.0003797,31]
[393208724,1762320644250,-151.0,0.0003797,31]
[393208725,1762320644259,-265.130133,0.0003797,15]
[393208726,1762320644269,-151.0,0.0003797,31]
[393208727,1762320644281,-158.091425,0.0003797,31]
[393208728,1762320644292,-151.0,0.0003797,31]
[393208729,1762320644302,-151.0,0.0003797,30]
[393208730,1762320644313,-151.0,0.0003797,31]
[393208731,1762320644323,-151.0,0.0003797,30]
[393208732,1762320644332,-151.0,0.0003797,31]
[393208733,1762320644341,-820.0,0.00037972,2]
[393208734,1762320644350,-612.607,0.00037972,2]
[393208735,1762320644359,-812.0,0.00037972,2]
[393208736,1762320644369,-905.0,0.00037972,2]
[393208737,1762320644378,-225.38622286,0.00037972,2]
[393208738,1762320644392,-962.61377714,0.00037972,2]
[393208739,1762320644401,-2500.0,0.00037974,7]
[393208740,1762320644411,-200.0,0.00037981,10]
[393208741,1762320644421,-151.0,0.00037982,31]
[393208742,1762320644431,-279.732024,0.00037982,31]
[393208743,1762320644443,-151.0,0.00037982,31]
[393208744,1762320644453,-341.01862,0.00037982,31]
[393208745,1762320644463,-341.01862,0.00037982,31]
[393208746,1762320644472,-151.0,0.00037982,31]
[393208747,1762320644484,-341.01862,0.00037982,31]
[393208748,1762320644494,-341.01862,0.00037982,31]
[393208749,1762320644503,-151.480472,0.00037982,31]
[393208750,1762320644512,-151.480472,0.00037982,31]
[393208751,1762320644521,-151.480472,0.00037982,31]
[393208752,1762320644531,-151.480472,0.00037982,31]
[393208753,1762320644541,-151.0,0.00037982,31]
[393208754,1762320644550,-151.0,0.00037982,31]
[393208755,1762320644559,-151.0,0.00037982,31]
[393208756,1762320644568,-165.473752,0.00037982,31]
[393208757,1762320644578,-2500.0,0.00037982,7]
[393208758,1762320644587,-2500.0,0.00037991,7]
[393208759,1762320644596,-184.5259881,0.00038,120]
[393208760,1762320644605,-200.27535613,0.00038,120]
[393208761,1762320644614,-168.64474297,0.00038,120]
[393208762,1762320644623,-1394.93978685,0.00038,120]
[393208763,1762320644633,-223.72156176,0.00038,120]
[393208764,1762320644645,-2500.0,0.00038,7]
[393208765,1762320644654,-166.0,0.00038,30]
[393208766,1762320644663,-179.50738991,0.00038,120]
[393208767,1762320644672,-161.1320248,0.00038,30]
[393208768,1762320644684,-161.1320248,0.00038,30]
[393208769,1762320644693,-500.0,0.00038014,7]
[393208770,1762320644702,-1456.94118479,0.00038015,2]
[393208771,1762320644711,-1000.0,0.00038027,7]
[393208772,1762320644721,-221.85,0.00038056,2]
[393208773,1762320644731,-877.98560829,0.00038066,2]
[393208774,1762320644740,-789.26333301,0.00038068,5]
[393208775,1762320644749,-5000.0,0.00038078,5]
[393208776,1762320644758,-151.0,0.0003808,14]
[393208777,1762320644766,-500.0,0.00038082,2]
[393208778,1762320644775,-500.0,0.00038082,2]
[393208779,1762320644785,-500.0,0.00038082,120]
[393208780,1762320644794,-151.0,0.00038083,31]
[393208781,1762320644803,-151.0,0.00038083,31]
[393208782,1762320644812,-151.0,0.00038083,31]
[393208783,1762320644822,-151.0,0.00038083,31]
[393208784,1762320644832,-151.0,0.00038083,31]
[393208785,1762320644840,-151.0,0.00038083,31]
[393208786,1762320644850,-151.0,0.00038083,31]
[393208787,1762320644859,-361950.58541916,0.00038083,7]
[393208788,1762320644868,-629.58,0.00038087,120]
[393208789,1762320644878,-629.58,0.00038087,120]
[393208790,1762320644889,-1500.0,0.00038096,5]
[393208791,1762320644898,-335.28782789,0.00038096,5]
[393208792,1762320644907,-1000.0,0.00038096,5]
[393208793,1762320644916,-1000.0,0.00038096,5]
[393208794,1762320644925,-1000.0,0.00038096,5]
[393208795,1762320644934,-2000.0,0.00038097,3]
[393208796,1762320644943,-2000.0,0.00038097,3]
[393208797,1762320644953,-2000.0,0.00038099,2]
[393208798,1762320644963,-1425.0,0.00038112,2]
[393208799,1762320644971,-212.48,0.00038125,14]
[393208800,1762320644981,-281.74,0.00038141,2]
[393208801,1762320644990,-150.0,0.00038169,7]
[393208802,1762320645000,-1000.0,0.00038173,5]
[393208803,1762320645009,-500.0,0.00038177,120]
[393208804,1762320645019,-215.06941983,0.00038183,2]
[393208805,1762320645028,-173.33139007,0.00038183,2]
[393208806,1762320645038,-428.89678196,0.00038183,2]
[393208807,1762320645047,-190.18293561,0.00038183,2]
[393208808,1762320645057,-2429.43421498,0.00038183,2]
[393208809,1762320645067,-209.34282057,0.00038183,15]
[393208810,1762320645076,-6691.32059136,0.00038183,2]
[393208811,1762320645086,-425.2962,0.00038183,10]
[393208812,1762320645095,-151.0,0.00038185,14]
[393208813,1762320645105,-999.0,0.00038187,120]
[393208814,1762320645114,-159.37883789,0.00038187,30]
[393208815,1762320645124,-500.0,0.00038187,2]
[393208816,1762320645133,-500.0,0.00038187,2]
[393208817,1762320645143,-281.80426583,0.00038187,120]
[393208818,1762320645152,-1000.0,0.00038188,2]
[393208819,1762320645162,-9984.8933,0.00038188,2]
[393208820,1762320645172,-33254.3761,0.00038188,2]
[393208821,1762320645181,-420000.0,0.00038188,2]
[393208822,1762320645191,-151.0,0.00038188,31]
[393208823,1762320645201,-151.0,0.00038188,31]
[393208824,1762320645211,-341.01862,0.00038188,31]
[393208825,1762320645221,-341.01862,0.00038188,31]
[393208826,1762320645230,-151.0,0.00038188,31]
[393208827,1762320645240,-341.01862,0.00038188,31]
[393208828,1762320645250,-341.01862,0.00038188,31]
[393208829,1762320645260,-151.480472,0.00038188,31]
[393208830,1762320645269,-151.480472,0.00038188,31]
[393208831,1762320645279,-151.480472,0.00038188,31]
[393208832,1762320645289,-151.480472,0.00038188,31]
[393208833,1762320645299,-151.0,0.00038188,31]
[393208834,1762320645309,-158.55006,0.00038188,31]
[393208835,1762320645318,-151.0,0.00038188,31]
[393208836,1762320645327,-151.0,0.00038188,31]
[393208837,1762320645337,-182.039707,0.00038188,31]
[393208838,1762320645347,-151.0,0.00038188,31]
[393208839,1762320645356,-151.0,0.00038188,31]
[393208840,1762320645365,-151.0,0.00038188,30]
[393208841,1762320645375,-151.0,0.00038188,31]
[393208842,1762320645384,-282.737471,0.00038188,30]
[393208843,1762320645394,-151.0,0.00038188,31]
[393208844,1762320645404,-1000.0,0.00038199,2]
[393208845,1762320645413,-2000.0,0.00038199,2]
[393208846,1762320645423,-184.12,0.000382,37]
[393208847,1762320645433,-184.12,0.000382,37]
[393208848,1762320645442,-200.0,0.000382,16]
[393208849,1762320645451,-1425.0,0.00038226,2]
[393208850,1762320645461,-150.0,0.00038233,7]
[393208851,1762320645470,-500.0,0.0003825,2]
[393208852,1762320645483,-300.0,0.00038255,7]
[393208853,1762320645492,-477.03,0.00038257,2]
[393208854,1762320645503,-477.03,0.00038257,2]
[393208856,1762320645513,-954.06,0.00038257,2]
[393208858,1762320645523,-477.03,0.00038257,2]
[393208860,1762320645532,-477.03,0.00038257,2]
[393208861,1762320645542,-477.03,0.00038257,2]
[393208862,1762320645552,-477.03,0.00038257,2]
[393208863,1762320645561,-477.03,0.00038257,2]
[393208865,1762320645571,-477.03,0.00038257,2]
[393208866,1762320645581,-477.03,0.00038257,2]
[393208867,1762320645591,-1240.57352989,0.00038266,2]
[393208868,1762320645600,-219.45729136,0.00038272,7]
[393208869,1762320645610,-1240.57352989,0.00038273,2]
[393208870,1762320645619,-184.0,0.00038274,120]
[393208871,1762320645628,-150.0,0.00038274,2]
[393208872,1762320645638,-300.98,0.00038274,2]
[393208873,1762320645650,-300.03,0.00038274,2]
[393208874,1762320645659,-169.01,0.00038274,2]
[393208875,1762320645669,-176.88,0.00038274,2]
[393208876,1762320645678,-169.01,0.00038274,2]
[393208878,1762320645688,-176.88,0.00038274,2]
[393208881,1762320645698,-169.01,0.00038274,2]
[393208882,1762320645707,-176.88,0.00038274,2]
[393208883,1762320645719,-169.01,0.00038274,2]
[393208884,1762320645728,-176.88,0.00038274,2]
[393208885,1762320645738,-169.01,0.00038274,2]
[393208886,1762320645748,-176.88,0.00038274,2]
[393208887,1762320645757,-169.01,0.00038274,2]
[393208888,1762320645766,-176.88,0.00038274,2]
[393208889,1762320645775,-169.01,0.00038274,2]
[393208890,1762320645787,-176.88,0.00038274,2]
[393208891,1762320645796,-169.01,0.00038274,2]
[393208892,1762320645807,-176.88,0.00038274,2]
[393208893,1762320645816,-169.01,0.00038274,2]
[393208894,1762320645826,-176.88,0.00038274,2]
[393208895,1762320645837,-169.01,0.00038274,2]
[393208896,1762320645847,-169.01,0.00038274,2]
[393208897,1762320645856,-169.01,0.00038274,2]
[393208898,1762320645867,-169.01,0.00038274,2]
[393208899,1762320645875,-169.01,0.00038274,2]
[393208900,1762320645884,-169.01,0.00038274,2]
[393208901,1762320645894,-169.01,0.00038274,2]
[393208902,1762320645903,-169.01,0.00038274,2]
[393208903,1762320645912,-169.01,0.00038274,2]
[393208904,1762320645921,-169.01,0.00038274,2]
[393208905,1762320645931,-169.01,0.00038274,2]
[393208906,1762320645940,-169.01,0.00038274,2]
[393208907,1762320645950,-169.01,0.00038274,2]
[393208908,1762320645959,-169.01,0.00038274,2]
[393208909,1762320645969,-169.01,0.00038274,2]
[393208910,1762320645978,-169.01,0.00038274,2]
[393208911,1762320645987,-169.01,0.00038274,2]
[393208912,1762320645996,-169.01,0.00038274,2]
[393208913,1762320646005,-169.01,0.00038274,2]
[393208914,1762320646014,-500.0,0.00038274,120]
[393208915,1762320646023,-194.126306,0.00038274,120]
[393208916,1762320646032,-555.395878,0.00038274,120]
[393208917,1762320646041,-500.0,0.00038274,120]
[393208918,1762320646051,-500.0,0.00038275,2]
[393208919,1762320646061,-1849.37693886,0.00038275,120]
[393208920,1762320646072,-10341.3425177,0.00038276,2]
[393208921,1762320646081,-10944.3771606,0.00038276,2]
[393208922,1762320646091,-94613.2649413,0.00038276,2]
[393208923,1762320646100,-1550.6515593,0.00038276,2]
[393208924,1762320646109,-156.249014,0.00038276,31]
[393208925,1762320646120,-151.0,0.00038276,31]
[393208926,1762320646131,-151.0,0.00038276,31]
[393208927,1762320646141,-151.0,0.0003828,14]
[393208928,1762320646151,-500.0,0.00038282,14]
[393208929,1762320646160,-500.0,0.00038282,14]
[393208930,1762320646169,-500.0,0.00038282,14]
[393208931,1762320646179,-500.0,0.00038282,14]
[393208932,1762320646188,-500.0,0.00038282,14]
[393208933,1762320646197,-500.0,0.00038282,14]
[393208934,1762320646207,-500.0,0.00038282,14]
[393208935,1762320646218,-500.0,0.00038282,14]
[393208936,1762320646229,-150.0,0.00038282,20]
[393208937,1762320646240,-500.0,0.00038282,2]
[393208938,1762320646249,-500.0,0.00038282,2]
[393208939,1762320646261,-631.79507118,0.00038282,2]
[393208940,1762320646270,-300.0,0.00038282,10]
[393208941,1762320646280,-309.14648851,0.00038282,10]
[393208942,1762320646289,-300.0,0.00038282,10]
[393208943,1762320646300,-666.0,0.00038282,10]
[393208944,1762320646310,-279.70319031,0.00038282,10]
[393208945,1762320646320,-20971.06841419,0.00038283,31]
[393208946,1762320646330,-258.94266936,0.00038283,2]
[393208947,1762320646340,-151.0,0.00038283,31]
[393208948,1762320646358,-151.0,0.00038283,31]
[393208949,1762320646371,-341.01862,0.00038283,31]
[393208950,1762320646381,-341.01862,0.00038283,31]
[393208951,1762320646391,-341.01862,0.00038283,31]
[393208952,1762320646402,-341.01862,0.00038283,31]
[393208953,1762320646412,-151.0,0.00038283,31]
[393208954,1762320646422,-151.0,0.00038283,31]
[393208955,1762320646434,-341.01862,0.00038283,31]
[393208956,1762320646445,-341.01862,0.00038283,31]
[393208957,1762320646455,-341.01862,0.00038283,31]
[393208958,1762320646466,-341.018612,0.00038283,31]
[393208959,1762320646476,-151.480472,0.00038283,31]
[393208960,1762320646486,-151.480472,0.00038283,31]
[393208961,1762320646495,-151.480472,0.00038283,31]
[393208962,1762320646505,-151.480472,0.00038283,31]
[393208963,1762320646515,-151.480472,0.00038283,31]
[393208964,1762320646525,-151.480472,0.00038283,31]
[393208965,1762320646535,-151.480472,0.00038283,31]
[393208966,1762320646544,-151.48048,0.00038283,31]
[393208967,1762320646554,-242.05846,0.00038283,31]
[393208968,1762320646563,-162.609222,0.00038283,31]
[393208969,1762320646572,-253.379154,0.00038283,31]
[393208970,1762320646583,-151.0,0.00038283,31]
[393208971,1762320646592,-151.0,0.00038283,30]
[393208972,1762320646602,-151.0,0.00038283,30]
[393208973,1762320646611,-151.0,0.00038283,31]
[393208974,1762320646621,-151.0,0.00038283,31]
[393208975,1762320646631,-404039.23408454,0.00038283,2]
[393208976,1762320646644,-397.57924274,0.00038283,2]
[393208977,1762320646654,-575.66426797,0.00038283,5]
[393208978,1762320646663,-205214.11596485,0.00038283,2]
[393208979,1762320646672,-124025.9307445,0.00038283,2]
[393208980,1762320646682,-1210.0,0.00038283,2]
[393208981,1762320646693,-10807.79957278,0.00038283,3]
[393208982,1762320646702,-714.79667173,0.00038283,2]
[393208983,1762320646713,-368.06939907,0.00038283,2]
[393208984,1762320646723,-2027.5749861,0.00038283,5]
[393208985,1762320646732,-1293.75302829,0.00038283,2]
[393208986,1762320646742,-354.16337093,0.00038283,2]
[393208987,1762320646751,-2831.3568934,0.00038283,2]
[393208988,1762320646760,-29276.18418222,0.00038283,2]
[393208989,1762320646769,-1545.88233755,0.00038283,2]
[393208990,1762320646778,-1046.93084743,0.00038283,2]
[393208991,1762320646788,-5273.44936271,0.00038283,2]
[393208992,1762320646797,-545.64560397,0.00038283,7]
[393208993,1762320646807,-352.53350225,0.00038283,2]
[393208994,1762320646816,-2496.20175819,0.00038283,2]
[393208995,1762320646826,-300.0,0.00038283,15]
[393208996,1762320646836,-2748.65718495,0.00038283,2]
[393208997,1762320646846,-219886.77942595,0.00038283,2]
[393208998,1762320646859,-153.83617986,0.00038283,2]
[393208999,1762320646868,-1705.45147961,0.00038283,2]
[393209000,1762320646878,-997.99595176,0.00038283,5]
[393209001,1762320646889,-253.30401249,0.00038283,2]
[393209002,1762320646899,-500.0,0.00038283,2]
[393209003,1762320646907,-1006.83321241,0.00038283,2]
[393209004,1762320646917,-1282.42160051,0.00038283,2]
[393209005,1762320646926,-247.64404897,0.00038283,2]
[393209006,1762320646936,-2326.52271119,0.00038283,10]
[393209007,1762320646945,-1058.9839091,0.00038283,2]
[393209008,1762320646954,-600.0,0.00038283,5]
[393209009,1762320646963,-554.38252006,0.00038283,2]
[393209010,1762320646973,-500.0,0.00038283,5]
[393209011,1762320646982,-9386.02460554,0.00038283,2]
[393209012,1762320646992,-1333.49206227,0.00038283,2]
[393209013,1762320647001,-1221.0,0.00038283,4]
[393209014,1762320647011,-2353.35941595,0.00038283,10]
[393209015,1762320647020,-3476.5125413,0.00038283,2]
[393209016,1762320647030,-2232.68874739,0.00038283,2]
[393209017,1762320647040,-759.98688086,0.00038283,2]
[393209018,1762320647049,-13038.91143093,0.00038283,2]
[393209019,1762320647058,-1951.43710437,0.00038283,2]
[393209020,1762320647068,-187.10900617,0.00038283,2]
[393209021,1762320647077,-15145.18182492,0.00038283,3]
[393209022,1762320647086,-643.0,0.00038283,2]
[393209023,1762320647095,-2003.98196331,0.00038283,4]
[393209024,1762320647105,-986.66836924,0.00038283,2]
[393209025,1762320647114,-582.53984841,0.00038283,2]
[393209026,1762320647124,-1865.79185646,0.00038283,2]
[393209027,1762320647133,-93901.2088752,0.00038283,2]
[393209028,1762320647149,-1089.0,0.00038283,2]
[393209029,1762320647161,-11250.0,0.00038283,2]
[393209030,1762320647173,-3328.28018311,0.00038283,2]
[393209031,1762320647184,-316.58300008,0.00038283,2]
[393209032,1762320647261,-500.0,0.00036644,7]
[393209033,1762320647271,-151.0,0.0003797,31]
[393209034,1762320647281,-12.80866325,0.00038283,2]
[393209035,1762320647293,-534.74828065,0.00038283,2]
[393209036,1762320647304,-4796.04800898,0.00038283,2]
[393209037,1762320647412,-6627.20119378,0.00038283,2]
[393209038,1762320647532,500.0,0.00014999,2]
[393209039,1762320647579,508.80290062,0.00014999,2]
[393209040,1762320647605,-477.76462643,0.00025888,2]
[393209041,1762320647615,-159.38285,0.0003699,31]
[393209042,1762320647625,-1217.40884357,0.00038183,2]
[393209043,1762320647637,-1102.0,0.00038183,2]
[393209044,1762320647651,-484.20353231,0.00038183,2]
[393209045,1762320647661,-304.27445683,0.00038283,2]
[393209046,1762320647685,-1493.2312474,0.00038283,2]
[393209047,1762320653931,197.36233167,0.00014999,2]
[393209050,1762320664043,500.0,0.00014999,2]
[393209051,1762320664107,500.0,0.00014999,2]
[393209052,1762320664155,500.0,0.00014999,2]
[393209053,1762320664225,300.0,0.00014999,2]
[393209055,1762320667774,195.0,0.0002607,120]
[393209056,1762320667955,195.0,0.00024739,120]
[393209057,1762320670848,193.0,0.0002607,120]
[393209058,1762320670884,500.0,0.00014999,2]
[393209059,1762320671009,193.0,0.00024739,120]
[393209060,1762320672114,300.0,0.0002607,120]
[393209061,1762320672275,297.81927499,0.00024739,120]
[393209062,1762320681862,500.0,0.00014999,2]
[393209063,1762320681915,413.07784076,0.00014999,2]
[393209064,1762320681941,86.92215924,0.00014999,2]
[393209065,1762320681981,350.0,0.00014999,2]
[393209066,1762320684748,535.34275379,0.00014999,2]
[393209067,1762320694910,500.0,0.00014999,2]
[393209068,1762320694960,500.0,0.00014999,2]
[393209069,1762320695006,500.0,0.00014999,2]
[393209070,1762320695055,312.9993636,0.00014999,2]
[393209074,1762320727693,500.0,0.00014999,2]
[393209075,1762320727904,500.0,0.00014999,2]
[393209076,1762320735852,500.0,0.00014999,2]
[393209077,1762320741225,500.0,0.00014999,2]
[393209078,1762320741457,500.0,0.00014999,2]
[393209079,1762320753656,500.0,0.00014999,2]
[393209080,1762320753706,533.57968953,0.00014999,2]
[393209081,1762320753906,500.0,0.00014999,2]
[393209082,1762320754211,500.0,0.00014999,2]
[393209083,1762320754262,500.0,0.00014999,2]
[393209084,1762320754315,500.0,0.00014999,2]
[393209085,1762320754359,500.0,0.00014999,2]
[393209086,1762320754406,500.0,0.00014999,2]
[393209087,1762320755369,500.0,0.00014999,2]
[393209088,1762320755601,181.16603384,0.00014999,2]
[393209089,1762320755624,318.83396616,0.00014999,2]
[393209109,1762320806527,500.0,0.00014999,2]
[393209110,1762320806824,527.49265419,0.00014999,2]
[393209111,1762320808512,510.92565276,0.00014999,2]
[393209118,1762320856310,440.04,0.00013699,2]
[393209119,1762320863615,500.0,0.00014999,2]
[393209120,1762320864318,500.0,0.00014999,2]